fUSD/lending_fUSD_20260409
["ID","MTS","AMOUNT","RATE_DAILY","PERIOD"]
[420144365,1775723435476,-1235.18214925,0.00011485,2]
[420144366,1775723435486,-200.0,0.00011485,2]
[420144367,1775723435495,-771.01748645,0.00011485,2]
[420144368,1775723435505,-183.41211369,0.00011485,2]
[420144369,1775723435515,-181.08010149,0.00011485,2]
[420144370,1775723435525,-500.0,0.00011487,2]
[420144371,1775723435534,-4722.99,0.00011507,2]
[420144372,1775723435544,-505.0,0.00011507,2]
[420144373,1775723435554,-155.0,0.00011526,2]
[420144374,1775723435564,-232.572621,0.00011526,2]
[420144375,1775723435573,-232.572621,0.00011526,2]
[420144376,1775723435583,-232.572621,0.00011526,2]
[420144377,1775723435592,-232.572621,0.00011526,2]
[420144378,1775723435601,-151.0,0.00011526,2]
[420144379,1775723435613,-189.07508,0.00011526,2]
[420144380,1775723435624,-189.07508,0.00011526,2]
[420144381,1775723435635,-189.07508,0.00011526,2]
[420144382,1775723435646,-189.07508,0.00011526,2]
[420144383,1775723435657,-500.0,0.00011542,2]
[420144384,1775723435668,-151.0,0.00011547,2]
[420144385,1775723435678,-500.0,0.00011562,2]
[420144386,1775723435688,-853.95,0.00011575,2]
[420144387,1775723435701,-501.68953804,0.00011581,2]
[420144388,1775723435711,-500.0,0.00011581,2]
[420144389,1775723435721,-500.0,0.00011597,2]
[420144390,1775723435731,-500.0,0.0001161,2]
[420144391,1775723435741,-500.0,0.0001161,2]
[420144392,1775723435750,-357.577635,0.00011626,2]
[420144393,1775723435760,-305.98337959,0.00011637,2]
[420144394,1775723435770,-500.0,0.00011652,2]
[420144395,1775723435780,-6955.10679984,0.00011699,2]
[420144396,1775723435790,-500.0,0.00011707,2]
[420144397,1775723435799,-211.230763,0.00011713,2]
[420144398,1775723435809,-211.230763,0.00011713,2]
[420144399,1775723435820,-211.230763,0.00011713,2]
[420144400,1775723435829,-211.230767,0.00011713,2]
[420144401,1775723435839,-151.0,0.00011713,2]
[420144402,1775723435848,-151.0,0.00011713,2]
[420144403,1775723435858,-151.0,0.00011713,2]
[420144404,1775723435867,-17795.15723002,0.00011713,2]
[420144405,1775723435881,-16397.92027817,0.00011713,2]
[420144406,1775723435891,-4746.26192794,0.00011713,2]
[420144407,1775723435902,-396.47588614,0.00011713,2]
[420144408,1775723435914,-2168.09710004,0.00011713,2]
[420144412,1775723438559,-1689.32264938,0.00011713,2]
[420144414,1775723438577,-6289.73662505,0.00011713,2]
[420144415,1775723438589,-505.84818665,0.00011713,2]
[420144416,1775723438602,-3665.0,0.00011713,2]
[420144417,1775723438615,-580.23789574,0.00011713,2]
[420144430,1775723443198,-1989.69857929,0.00011713,2]
[420144431,1775723443362,-2516.88096098,0.00011713,2]
[420144432,1775723443587,-3242.44653679,0.00011713,2]
[420144433,1775723443597,-151.0,0.00011727,2]
[420144434,1775723443608,-151.0,0.00011727,2]
[420144435,1775723443618,-151.0,0.00011727,2]
[420144436,1775723443628,-151.0,0.00011727,2]
[420144437,1775723443638,-164.07037,0.00011727,2]
[420144438,1775723443649,-151.0,0.00011727,2]
[420144439,1775723443659,-179.727262,0.00011727,2]
[420144440,1775723443670,-151.0,0.00011736,2]
[420144441,1775723443680,-167.0,0.0001174,2]
[420144442,1775723443689,-167.0,0.0001174,2]
[420144443,1775723443699,-167.0,0.0001174,2]
[420144444,1775723443709,-167.0,0.0001174,2]
[420144445,1775723443720,-167.0,0.0001174,2]
[420144446,1775723443730,-167.0,0.0001174,2]
[420144447,1775723443740,-167.0,0.0001174,2]
[420144448,1775723443750,-185.12335472,0.0001174,2]
[420144449,1775723443760,-151.0,0.00011755,2]
[420144450,1775723443769,-151.0,0.00011755,2]
[420144451,1775723443780,-232.572621,0.00011755,2]
[420144452,1775723443790,-232.572621,0.00011755,2]
[420144453,1775723443800,-232.572621,0.00011755,2]
[420144454,1775723443811,-232.572629,0.00011755,2]
[420144455,1775723443820,-151.0,0.00011755,2]
[420144456,1775723443830,-189.07508,0.00011755,2]
[420144457,1775723443840,-189.07508,0.00011755,2]
[420144458,1775723443850,-189.07508,0.00011755,2]
[420144459,1775723443861,-189.075076,0.00011755,2]
[420144460,1775723443871,-500.0,0.00011762,2]
[420144461,1775723443881,-1106.40653024,0.00011788,2]
[420144469,1775723446125,-3893.59346976,0.00011788,2]
[420144470,1775723446135,-5000.0,0.00011788,2]
[420144471,1775723446144,-5000.0,0.00011788,2]
[420144472,1775723446154,-5000.0,0.00011788,2]
[420144473,1775723446164,-350.0,0.00011807,2]
[420144474,1775723446174,-2000.0,0.00011844,2]
[420144475,1775723446184,-1047.0,0.00011844,5]
[420144476,1775723446193,-151.0,0.00011844,2]
[420144477,1775723446202,-151.0,0.00011844,2]
[420144478,1775723446212,-152.419086,0.00011844,2]
[420144479,1775723446222,-853.95,0.00011849,2]
[420144480,1775723446232,-1600.0,0.00011885,2]
[420144481,1775723446242,-299.0,0.00011888,10]
[420144482,1775723446252,-1400.0,0.000119,4]
[420144483,1775723446262,-300.0,0.00011912,2]
[420144484,1775723446271,-300.0,0.00011912,2]
[420144485,1775723446281,-300.0,0.00011912,2]
[420144486,1775723446291,-300.0,0.00011912,2]
[420144487,1775723446301,-300.0,0.00011912,2]
[420144488,1775723446311,-188.32,0.00011924,2]
[420144489,1775723446320,-158.6548096,0.00011984,2]
[420144490,1775723446330,-477.90168111,0.00012,2]
[420144513,1775723446784,-155.0,0.00012019,2]
[420144516,1775723446800,-1240.9393741,0.00012025,2]
[420144518,1775723446811,-165.17,0.00012025,2]
[420144520,1775723446820,-249.27388514,0.00012033,2]
[420144522,1775723446829,-1280.88388878,0.00012033,2]
[420144524,1775723446838,-200.0,0.00012033,2]
[420144526,1775723446847,-799.54513345,0.00012033,2]
[420144527,1775723446856,-187.78006525,0.00012033,2]
[420144528,1775723446865,-2617.5515784,0.00012036,2]
[420144529,1775723446874,-151.0,0.00012044,2]
[420144530,1775723446883,-1000.0,0.00012045,2]
[420144531,1775723446893,-338.982142,0.00012053,2]
[420144532,1775723446902,-4999.47,0.00012055,2]
[420144533,1775723446912,-551.0,0.00012071,2]
[420144534,1775723446921,-3205.6395164,0.0001208,2]
[420144535,1775723446931,-4286.9856059,0.0001208,2]
[420144536,1775723446940,-2041.3977868,0.0001208,2]
[420144537,1775723446950,-2000.0,0.000121,2]
[420144538,1775723446959,-151.0,0.00012114,2]
[420144539,1775723446969,-151.0,0.00012114,2]
[420144540,1775723446979,-151.0,0.00012114,2]
[420144541,1775723446988,-151.0,0.00012114,2]
[420144542,1775723446997,-151.0,0.00012114,2]
[420144543,1775723447006,-300.0,0.00012122,2]
[420144544,1775723447016,-295.90885131,0.00012122,2]
[420144545,1775723447025,-853.95,0.00012123,2]
[420144546,1775723447035,-151.0,0.00012127,2]
[420144547,1775723447044,-151.0,0.00012127,2]
[420144548,1775723447053,-260.0,0.00012173,2]
[420144549,1775723447063,-1000.0,0.00012184,2]
[420144550,1775723447073,-589.24,0.00012197,2]
[420144551,1775723447082,-1000.0,0.00012251,2]
[420144552,1775723447091,-3000.0,0.00012253,2]
[420144553,1775723447100,-151.0,0.00012267,2]
[420144554,1775723447110,-500.0,0.00012269,2]
[420144555,1775723447119,-500.0,0.00012269,2]
[420144556,1775723447128,-517.77929124,0.00012269,2]
[420144557,1775723447137,-559.16330827,0.00012269,2]
[420144558,1775723447147,-500.0,0.00012269,2]
[420144559,1775723447157,-500.0,0.00012269,2]
[420144560,1775723447166,-500.0,0.00012269,2]
[420144561,1775723447175,-519.52473354,0.00012269,2]
[420144562,1775723447185,-500.0,0.00012269,2]
[420144563,1775723447194,-500.0,0.00012269,2]
[420144564,1775723447203,-597.86061454,0.00012269,2]
[420144565,1775723447212,-500.0,0.00012269,2]
[420144566,1775723447221,-500.0,0.00012269,2]
[420144567,1775723447231,-500.0,0.00012269,2]
[420144568,1775723447241,-34193.07750819,0.0001227,2]
[420144569,1775723447250,-27790.006348,0.0001227,2]
[420144570,1775723447259,-173.1216,0.000123,2]
[420144571,1775723447269,-2000.0,0.000123,2]
[420144572,1775723447279,-433.0,0.0001232,2]
[420144573,1775723447289,-276.8910012,0.00012327,2]
[420144574,1775723447298,-587.0,0.00012336,2]
[420144575,1775723447308,-171.0224172,0.0001234,2]
[420144576,1775723447317,-584.0547029,0.0001234,2]
[420144577,1775723447326,-2351.0,0.00012341,2]
[420144578,1775723447335,-300.0,0.00012374,2]
[420144579,1775723447344,-300.0,0.00012374,2]
[420144580,1775723447354,-300.0,0.00012374,2]
[420144581,1775723447363,-300.0,0.00012374,2]
[420144582,1775723447373,-300.0,0.00012374,2]
[420144583,1775723447383,-1559.0,0.00012375,5]
[420144584,1775723447391,-715.2748586,0.00012384,2]
[420144585,1775723447401,-956.5557848,0.00012384,2]
[420144586,1775723447411,-455.497415,0.00012384,2]
[420144587,1775723447421,-164.26,0.00012386,2]
[420144588,1775723447431,-854.0,0.00012397,2]
[420144589,1775723447440,-6955.10679984,0.00012399,2]
[420144590,1775723447449,-313.0,0.000124,2]
[420144591,1775723447459,-200.0,0.000124,2]
[420144592,1775723447468,-306.0,0.000124,2]
[420144593,1775723447478,-226.59998905,0.000124,2]
[420144594,1775723447487,-160.0,0.0001244,2]
[420144595,1775723447497,-188.32,0.00012492,2]
[420144596,1775723447506,-1900.0,0.00012527,2]
[420144597,1775723447515,-151.0,0.00012527,2]
[420144598,1775723447525,-153.27988,0.00012527,2]
[420144599,1775723447534,-1328.27659266,0.00012581,2]
[420144600,1775723447544,-200.0,0.00012581,2]
[420144601,1775723447554,-829.12830338,0.00012581,2]
[420144602,1775723447563,-194.72792766,0.00012581,2]
[420144603,1775723447572,-300.0,0.00012644,2]
[420144604,1775723447582,-300.0,0.00012703,2]
[420144605,1775723447591,-1000.0,0.00012705,2]
[420144606,1775723447601,-1047.0,0.00012714,2]
[420144607,1775723447611,-168.43,0.00012743,2]
[420144608,1775723447621,-168.43,0.00012743,2]
[420144609,1775723447631,-1051.65863837,0.00012767,2]
[420144610,1775723447640,-1355.0,0.00012779,5]
[420144611,1775723447650,-260.0,0.00012804,2]
[420144612,1775723447660,-2502.0,0.00012807,2]
[420144613,1775723447671,-186.79007025,0.00012814,2]
[420144614,1775723447680,-1051.65863837,0.00012822,2]
[420144615,1775723447689,-34193.07750819,0.00012827,2]
[420144616,1775723447699,-27790.006348,0.00012827,2]
[420144617,1775723447710,-589.24,0.00012833,2]
[420144618,1775723447719,-300.0,0.00012836,2]
[420144619,1775723447729,-300.0,0.00012836,2]
[420144620,1775723447739,-300.0,0.00012836,2]
[420144621,1775723447748,-300.0,0.00012836,2]
[420144622,1775723447758,-300.0,0.00012836,2]
[420144623,1775723447767,-2502.0,0.00012838,2]
[420144624,1775723447777,-178.0,0.0001286,2]
[420144625,1775723447786,-178.0,0.00012866,2]
[420144626,1775723447795,-1000.0,0.00012867,2]
[420144627,1775723447804,-1051.65863837,0.00012877,2]
[420144628,1775723447814,-2502.0,0.00012886,2]
[420144629,1775723447823,-2502.0,0.00012888,2]
[420144630,1775723447833,-300.0,0.00012899,2]
[420144631,1775723447842,-300.0,0.00012899,2]
[420144632,1775723447852,-300.0,0.00012899,2]
[420144633,1775723447862,-300.0,0.00012899,2]
[420144634,1775723447872,-300.0,0.00012899,2]
[420144635,1775723447881,-300.0,0.00012899,2]
[420144636,1775723447891,-500.0,0.000129,2]
[420144637,1775723447901,-500.0,0.000129,2]
[420144638,1775723447911,-500.0,0.000129,2]
[420144639,1775723447920,-500.0,0.000129,2]
[420144640,1775723447929,-500.0,0.000129,2]
[420144641,1775723447939,-500.0,0.000129,2]
[420144642,1775723447949,-500.0,0.000129,2]
[420144643,1775723447958,-500.0,0.000129,2]
[420144644,1775723447968,-500.0,0.000129,2]
[420144645,1775723447978,-500.0,0.000129,2]
[420144646,1775723447987,-500.0,0.000129,2]
[420144647,1775723447996,-500.0,0.000129,2]
[420144648,1775723448006,-500.0,0.000129,2]
[420144649,1775723448015,-500.0,0.000129,2]
[420144650,1775723448025,-500.0,0.000129,2]
[420144651,1775723448034,-500.0,0.000129,2]
[420144652,1775723448045,-500.0,0.000129,2]
[420144653,1775723448055,-500.0,0.000129,2]
[420144654,1775723448065,-500.0,0.000129,2]
[420144655,1775723448075,-500.0,0.000129,2]
[420144656,1775723448085,-500.0,0.000129,2]
[420144657,1775723448096,-500.0,0.000129,2]
[420144658,1775723448106,-500.0,0.000129,2]
[420144659,1775723448116,-500.0,0.000129,2]
[420144660,1775723448126,-500.0,0.000129,2]
[420144661,1775723448136,-500.0,0.000129,2]
[420144662,1775723448146,-500.0,0.000129,2]
[420144663,1775723448156,-500.0,0.000129,2]
[420144664,1775723448165,-500.0,0.000129,2]
[420144665,1775723448175,-500.0,0.000129,2]
[420144666,1775723448185,-500.0,0.000129,2]
[420144667,1775723448195,-500.0,0.000129,2]
[420144668,1775723448205,-500.0,0.000129,2]
[420144669,1775723448216,-500.0,0.000129,2]
[420144670,1775723448226,-500.0,0.000129,2]
[420144671,1775723448236,-500.0,0.000129,2]
[420144672,1775723448246,-705.0,0.000129,2]
[420144673,1775723448255,-500.0,0.000129,2]
[420144674,1775723448265,-500.0,0.000129,2]
[420144675,1775723448275,-500.0,0.000129,2]
[420144676,1775723448284,-500.0,0.000129,2]
[420144677,1775723448294,-500.0,0.000129,2]
[420144678,1775723448303,-500.0,0.000129,2]
[420144679,1775723448314,-500.0,0.000129,2]
[420144680,1775723448325,-500.0,0.000129,2]
[420144681,1775723448335,-500.0,0.000129,2]
[420144682,1775723448344,-500.0,0.000129,2]
[420144683,1775723448353,-500.0,0.000129,2]
[420144684,1775723448363,-500.0,0.000129,2]
[420144685,1775723448372,-500.0,0.000129,2]
[420144686,1775723448382,-500.0,0.000129,2]
[420144687,1775723448392,-500.0,0.000129,2]
[420144688,1775723448401,-500.0,0.000129,2]
[420144689,1775723448411,-500.0,0.000129,2]
[420144690,1775723448421,-500.0,0.000129,2]
[420144691,1775723448430,-500.0,0.000129,2]
[420144692,1775723448439,-500.0,0.000129,2]
[420144693,1775723448448,-500.0,0.000129,2]
[420144694,1775723448458,-500.0,0.000129,2]
[420144695,1775723448468,-500.0,0.000129,2]
[420144696,1775723448478,-500.0,0.000129,2]
[420144697,1775723448488,-500.0,0.000129,2]
[420144698,1775723448497,-500.0,0.000129,2]
[420144699,1775723448506,-500.0,0.000129,2]
[420144700,1775723448516,-500.0,0.000129,2]
[420144701,1775723448525,-500.0,0.000129,2]
[420144702,1775723448536,-500.0,0.000129,2]
[420144703,1775723448546,-500.0,0.000129,2]
[420144704,1775723448556,-500.0,0.000129,2]
[420144705,1775723448565,-500.0,0.000129,2]
[420144706,1775723448576,-500.0,0.000129,2]
[420144707,1775723448586,-500.0,0.000129,2]
[420144708,1775723448595,-500.0,0.000129,2]
[420144709,1775723448604,-500.0,0.000129,2]
[420144710,1775723448613,-500.0,0.000129,2]
[420144711,1775723448623,-500.0,0.000129,2]
[420144712,1775723448632,-500.0,0.000129,2]
[420144713,1775723448641,-500.0,0.000129,2]
[420144714,1775723448651,-500.0,0.000129,2]
[420144715,1775723448660,-500.0,0.000129,2]
[420144716,1775723448669,-500.0,0.000129,2]
[420144717,1775723448679,-500.0,0.000129,2]
[420144718,1775723448688,-500.0,0.000129,2]
[420144719,1775723448698,-500.0,0.000129,2]
[420144720,1775723448708,-500.0,0.000129,2]
[420144721,1775723448718,-500.0,0.000129,2]
[420144722,1775723448727,-500.0,0.000129,2]
[420144723,1775723448737,-500.0,0.000129,2]
[420144724,1775723448746,-500.0,0.000129,2]
[420144725,1775723448756,-500.0,0.000129,2]
[420144726,1775723448765,-500.0,0.000129,2]
[420144727,1775723448775,-500.0,0.000129,2]
[420144728,1775723448784,-500.0,0.000129,2]
[420144729,1775723448794,-500.0,0.000129,2]
[420144730,1775723448803,-500.0,0.000129,2]
[420144731,1775723448813,-500.0,0.000129,2]
[420144732,1775723448822,-500.0,0.000129,2]
[420144733,1775723448831,-500.0,0.000129,2]
[420144734,1775723448840,-500.0,0.000129,2]
[420144735,1775723448850,-945.0,0.000129,2]
[420144736,1775723448860,-500.0,0.000129,2]
[420144737,1775723448869,-500.0,0.000129,2]
[420144738,1775723448879,-500.0,0.000129,2]
[420144739,1775723448888,-500.0,0.000129,2]
[420144740,1775723448898,-500.0,0.000129,2]
[420144741,1775723448907,-500.0,0.000129,2]
[420144742,1775723448917,-500.0,0.000129,2]
[420144743,1775723448926,-500.0,0.000129,2]
[420144744,1775723448936,-500.0,0.000129,2]
[420144745,1775723448945,-500.0,0.000129,2]
[420144746,1775723448954,-500.0,0.000129,2]
[420144747,1775723448963,-500.0,0.000129,2]
[420144748,1775723448973,-500.0,0.000129,2]
[420144749,1775723448982,-500.0,0.000129,2]
[420144750,1775723448991,-500.0,0.000129,2]
[420144751,1775723449000,-727.0,0.000129,2]
[420144752,1775723449009,-950.0,0.000129,2]
[420144753,1775723449019,-500.0,0.000129,2]
[420144754,1775723449028,-500.0,0.000129,2]
[420144755,1775723449037,-500.0,0.000129,2]
[420144756,1775723449046,-500.0,0.000129,2]
[420144757,1775723449056,-500.0,0.000129,2]
[420144758,1775723449065,-500.0,0.000129,2]
[420144759,1775723449075,-500.0,0.000129,2]
[420144760,1775723449084,-500.0,0.000129,2]
[420144761,1775723449093,-500.0,0.000129,2]
[420144762,1775723449103,-500.0,0.000129,2]
[420144763,1775723449112,-500.0,0.000129,2]
[420144764,1775723449121,-500.0,0.000129,2]
[420144765,1775723449131,-500.0,0.000129,2]
[420144766,1775723449140,-500.0,0.000129,2]
[420144767,1775723449149,-500.0,0.000129,2]
[420144768,1775723449159,-500.0,0.000129,2]
[420144769,1775723449168,-500.0,0.000129,2]
[420144770,1775723449177,-500.0,0.000129,2]
[420144771,1775723449187,-500.0,0.000129,2]
[420144772,1775723449196,-500.0,0.000129,2]
[420144773,1775723449206,-500.0,0.000129,2]
[420144774,1775723449216,-500.0,0.000129,2]
[420144775,1775723449227,-500.0,0.000129,2]
[420144776,1775723449237,-500.0,0.000129,2]
[420144777,1775723449246,-778.0,0.000129,2]
[420144778,1775723449256,-500.0,0.000129,2]
[420144779,1775723449266,-812.0,0.000129,2]
[420144780,1775723449275,-500.0,0.000129,2]
[420144781,1775723449284,-500.0,0.000129,2]
[420144782,1775723449294,-500.0,0.000129,2]
[420144783,1775723449303,-610.0,0.000129,2]
[420144784,1775723449313,-500.0,0.000129,2]
[420144785,1775723449323,-500.0,0.000129,2]
[420144786,1775723449332,-500.0,0.000129,2]
[420144787,1775723449341,-500.0,0.000129,2]
[420144788,1775723449350,-500.0,0.000129,2]
[420144789,1775723449360,-500.0,0.000129,2]
[420144790,1775723449370,-500.0,0.000129,2]
[420144791,1775723449379,-777.0,0.000129,2]
[420144792,1775723449389,-258.251,0.00012912,2]
[420144793,1775723449398,-1265.392,0.00012912,2]
[420144794,1775723449408,-1218.0,0.00012912,2]
[420144795,1775723449417,-926.0,0.00012912,2]
[420144796,1775723449427,-2471.0,0.00012912,2]
[420144797,1775723449436,-3524.0,0.00012912,2]
[420144798,1775723449446,-1051.65863837,0.00012932,2]
[420144799,1775723449455,-1000.0,0.00012942,2]
[420144800,1775723449464,-150.0,0.00012966,9]
[420144801,1775723449474,-1051.65863837,0.00012986,2]
[420144802,1775723449485,-2502.0,0.00012992,2]
[420144803,1775723449494,-950.42027119,0.00012999,2]
[420144804,1775723449503,-1000.0,0.00013,13]
[420144805,1775723449512,-250.0,0.00013,2]
[420144806,1775723449522,-178.0,0.00013006,2]
[420144807,1775723449531,-178.0,0.00013009,2]
[420144808,1775723449541,-1000.0,0.0001301,2]
[420144809,1775723449550,-2502.0,0.00013031,2]
[420144810,1775723449559,-1051.65863837,0.00013041,2]
[420144811,1775723449569,-188.32,0.0001306,2]
[420144812,1775723449579,-1051.65863837,0.00013068,2]
[420144813,1775723449588,-2502.0,0.0001308,2]
[420144814,1775723449598,-178.0,0.00013084,2]
[420144815,1775723449608,-6955.10679984,0.00013099,2]
[420144816,1775723449618,-1795.22,0.00013122,2]
[420144817,1775723449627,-1051.65863837,0.00013123,2]
[420144818,1775723449637,-178.0,0.00013128,2]
[420144819,1775723449647,-1377.42282659,0.00013129,2]
[420144820,1775723449656,-200.0,0.00013129,2]
[420144821,1775723449666,-859.80605061,0.00013129,2]
[420144822,1775723449675,-201.93286099,0.00013129,2]
[420144823,1775723449685,-178.0,0.00013134,2]
[420144824,1775723449694,-178.0,0.00013137,2]
[420144825,1775723449704,-12403.52,0.00013141,2]
[420144826,1775723449713,-2000.0,0.0001316,2]
[420144827,1775723449723,-178.0,0.00013163,2]
[420144828,1775723449733,-1051.65863837,0.00013178,2]
[420144829,1775723449743,-217.0,0.00013187,2]
[420144830,1775723449753,-273.0,0.00013187,2]
[420144831,1775723449762,-200.0,0.00013187,2]
[420144832,1775723449772,-225.71,0.00013187,2]
[420144833,1775723449782,-250.0,0.00013187,2]
[420144834,1775723449792,-250.0,0.00013187,2]
[420144835,1775723449801,-239.355,0.00013187,2]
[420144836,1775723449811,-209.532,0.00013187,2]
[420144837,1775723449821,-163.59,0.00013187,2]
[420144838,1775723449830,-250.0,0.00013187,2]
[420144839,1775723449840,-156.347,0.00013187,2]
[420144840,1775723449849,-193.677,0.00013187,2]
[420144841,1775723449859,-166.221,0.00013187,2]
[420144842,1775723449869,-215.062,0.00013187,2]
[420144843,1775723449879,-250.0,0.00013187,2]
[420144844,1775723449889,-240.446,0.00013187,2]
[420144845,1775723449899,-181.0,0.00013187,2]
[420144846,1775723449908,-176.270714,0.00013201,2]
[420144847,1775723449918,-1600.0,0.00013205,2]
[420144848,1775723449928,-178.0,0.00013213,2]
[420144849,1775723449938,-2502.0,0.00013231,2]
[420144850,1775723449947,-1051.65863837,0.00013233,2]
[420144851,1775723449957,-24014.00687678,0.00013238,2]
[420144852,1775723449967,-178.0,0.00013266,2]
[420144853,1775723449976,-178.0,0.00013269,2]
[420144854,1775723449986,-150.0,0.00013271,2]
[420144855,1775723449996,-267.157264,0.00013273,2]
[420144856,1775723450005,-178.0,0.00013282,2]
[420144857,1775723450015,-300.0,0.00013285,2]
[420144858,1775723450024,-1051.65863837,0.00013288,2]
[420144859,1775723450033,-181.289401,0.0001329,2]
[420144860,1775723450043,-662.77616733,0.00013291,4]
[420144861,1775723450053,-2502.0,0.00013291,2]
[420144862,1775723450062,-300.0,0.00013298,2]
[420144863,1775723450071,-300.0,0.00013298,2]
[420144864,1775723450081,-300.0,0.00013298,2]
[420144865,1775723450090,-300.0,0.00013298,2]
[420144866,1775723450100,-300.0,0.00013298,2]
[420144867,1775723450109,-181.08329085,0.000133,4]
[420144868,1775723450119,-178.0,0.00013321,2]
[420144869,1775723450128,-5207.041,0.00013328,2]
[420144870,1775723450137,-271.817,0.00013328,2]
[420144871,1775723450147,-1051.65863837,0.00013342,2]
[420144872,1775723450157,-185.18721773,0.0001336,2]
[420144873,1775723450167,-2213.0,0.00013372,2]
[420144874,1775723450177,-34193.07750819,0.00013383,2]
[420144875,1775723450186,-27790.006348,0.00013383,2]
[420144876,1775723450195,-1000.0,0.00013406,2]
[420144877,1775723450205,-150.0,0.00013408,2]
[420144878,1775723450214,-3240.0,0.00013425,2]
[420144879,1775723450224,-775.88696598,0.00013429,2]
[420144882,1775723515430,169.61,9.974e-05,2]
[420144883,1775723529317,159.0,9.974e-05,3]
[420144884,1775723592146,159.0,9.974e-05,3]
[420144885,1775723596386,1293.03667092,0.0001,2]
[420144886,1775723648643,160.0,0.0001,3]
[420144889,1775723701694,17708.2494,0.0001,2]
[420144893,1775723825401,192.0,0.0001,3]
[420144896,1775723885493,192.0,0.0001,3]
[420144899,1775724009319,152.0,0.0001,3]
[420144900,1775724065620,31354.21612798,9.829e-05,2]
[420144901,1775724065644,1151.4715053,9.829e-05,2]
[420144902,1775724065668,1184.73830106,9.829e-05,2]
[420144903,1775724065692,1184.73830106,9.829e-05,2]
[420144904,1775724065715,1184.73830106,9.829e-05,2]
[420144905,1775724065737,1184.73830106,9.829e-05,2]
[420144906,1775724065760,1184.73830106,9.829e-05,2]
[420144907,1775724331121,-151.0,9.827e-05,2]
[420144908,1775724331143,-250.0,9.827e-05,2]
[420144909,1775724331164,-3129.70750296,9.828e-05,2]
[420144910,1775724331187,-1200.0,9.828e-05,2]
[420144911,1775724331207,-300.0,9.828e-05,2]
[420144912,1775724331228,-150.0,9.828e-05,2]
[420144913,1775724331251,-14718.00041262,9.829e-05,2]
[420144914,1775724433315,157.94973348,3e-05,2]
[420144915,1775724486636,-1000.0,9.376e-05,2]
[420144916,1775724487580,-852.42,9.376e-05,2]
[420144917,1775724487604,-147.58,9.828e-05,2]
[420144918,1775724487901,-152.42,9.828e-05,2]
[420144919,1775724487923,-150.0,9.828e-05,2]
[420144920,1775724487945,-697.58,9.829e-05,2]
[420144921,1775724488234,-1000.0,9.829e-05,2]
[420144922,1775724488628,-1000.0,9.829e-05,2]
[420144923,1775724489058,-1000.0,9.829e-05,2]
[420144924,1775724489384,-1000.0,9.829e-05,2]
[420144925,1775724489787,-1000.0,9.829e-05,2]
[420144926,1775724490249,-1000.0,9.829e-05,2]
[420144927,1775724490559,-1000.0,9.829e-05,2]